bitfinex/quotes_BTCUSD_20250727
["timestamp","ask_amount","ask_price","bid_price","bid_amount"]
[1753579637702,0.18703042,118260.0,118250.0,0.57375483]
[1753579639453,0.52703042,118260.0,118250.0,0.15777]
[1753579641510,0.84303795,118260.0,118250.0,0.15567]
[1753579641726,0.87483795,118260.0,118250.0,0.15252]
[1753579642705,0.87483795,118260.0,118250.0,0.15567]
[1753579643405,0.85933795,118260.0,118250.0,0.02695]
[1753579643635,0.54333042,118260.0,118250.0,0.02695]
[1753579645710,0.85933795,118260.0,118250.0,0.02695]
[1753579645959,0.84303795,118260.0,118250.0,0.02695]
[1753579646637,0.52703042,118260.0,118250.0,0.02695]
[1753579646781,0.84303795,118260.0,118250.0,0.02695]
[1753579647647,0.52703042,118260.0,118250.0,0.02695]
[1753579649980,0.84303795,118260.0,118250.0,0.02695]
[1753579650395,0.51011889,118260.0,118240.0,0.46337753]
[1753579650596,0.1775897,118250.0,118240.0,0.48629753]
[1753579650819,0.1775897,118250.0,118240.0,0.48842753]
[1753579651247,0.1775897,118250.0,118240.0,0.17242]
[1753579651448,0.18615977,118250.0,118240.0,0.15692]
[1753579651666,0.31487977,118250.0,118240.0,0.48812753]
[1753579651899,0.65487977,118250.0,118240.0,0.15692]
[1753579652617,0.65487977,118250.0,118240.0,0.0282]
[1753579653305,0.65487977,118250.0,118240.0,0.0292]
[1753579653532,0.65487977,118250.0,118240.0,0.36040753]
[1753579653752,0.65487977,118250.0,118240.0,0.37560753]
[1753579653959,0.66333621,118250.0,118240.0,0.37560753]
[1753579654186,0.66333621,118250.0,118240.0,0.34520753]
[1753579654813,0.66333621,118250.0,118240.0,0.34420753]
[1753579655023,0.66433621,118250.0,118240.0,0.34420753]
[1753579655879,0.66433621,118250.0,118240.0,0.0282]
[1753579656293,0.66633621,118250.0,118240.0,0.0282]
[1753579658693,0.98234374,118250.0,118240.0,0.0282]
[1753579659563,0.66633621,118250.0,118240.0,0.0282]
[1753579660684,0.66633621,118250.0,118240.0,0.0437]
[1753579666121,0.66633621,118250.0,118240.0,0.0587]
[1753579670068,0.66633621,118250.0,118240.0,0.37470753]
[1753579670252,0.66633621,118250.0,118240.0,0.0587]
[1753579670478,0.66633621,118250.0,118240.0,0.37470753]
[1753579671032,0.66633621,118250.0,118240.0,0.0587]
[1753579673024,0.66633621,118250.0,118240.0,0.37470753]
[1753579673223,0.67426256,118250.0,118240.0,0.37470753]
[1753579676113,0.67426256,118250.0,118240.0,0.0587]
[1753579676721,0.66633621,118250.0,118240.0,0.0587]
[1753579676870,0.67426378,118250.0,118240.0,0.0587]
[1753579677293,0.65776614,118250.0,118240.0,0.0587]
[1753579677709,0.66569421,118250.0,118240.0,0.0587]
[1753579678752,0.66569421,118250.0,118240.0,0.54385502]
[1753579680226,0.36784102,118250.0,118240.0,0.54385502]
[1753579680449,0.65776614,118250.0,118240.0,0.54385502]
[1753579682533,0.343,118250.0,118240.0,0.54385502]
[1753579682727,0.36836868,118250.0,118240.0,0.56076955]
[1753579683157,0.36836868,118250.0,118240.0,0.56922663]
[1753579683589,0.36836868,118250.0,118240.0,0.56076955]
[1753579684321,0.36836868,118250.0,118240.0,0.55231239]
[1753579684530,0.36836868,118250.0,118240.0,0.56076955]
[1753579686512,0.36836868,118250.0,118240.0,0.56076962]
[1753579687164,0.37682526,118250.0,118240.0,0.55231239]
[1753579687389,0.54595909,118250.0,118240.0,0.54385502]
[1753579687678,0.53750286,118250.0,118240.0,0.54385502]
[1753579688374,0.54614637,118250.0,118240.0,0.54385502]
[1753579688786,0.54614637,118250.0,118240.0,0.22784749]
[1753579689191,0.54614637,118250.0,118240.0,0.54385502]
[1753579689446,0.37701318,118250.0,118240.0,0.55231239]
[1753579690546,0.37701318,118250.0,118240.0,0.54385502]
[1753579690984,0.36855653,118250.0,118240.0,0.55231232]
[1753579691199,0.36855653,118250.0,118240.0,0.54385502]
[1753579691885,0.36855653,118250.0,118240.0,0.55231239]
[1753579692778,0.36855653,118250.0,118240.0,0.56076969]
[1753579692925,0.36855653,118250.0,118240.0,0.55231239]
[1753579694050,0.36855618,118250.0,118240.0,0.6021462]
[1753579694262,0.36855618,118250.0,118240.0,0.60214635]
[1753579695726,0.35991238,118250.0,118240.0,0.57768408]
[1753579695914,0.35991238,118250.0,118240.0,0.58614102]
[1753579696286,0.35991231,118250.0,118240.0,0.58614102]
[1753579697061,0.35145608,118250.0,118240.0,0.67061796]
[1753579697238,0.35145601,118250.0,118240.0,0.67061796]
[1753579697653,0.343,118250.0,118240.0,0.67061796]
[1753579697854,0.35145601,118250.0,118240.0,0.67061796]
[1753579698059,0.36009962,118250.0,118240.0,0.67061796]
[1753579698663,0.35809962,118250.0,118240.0,0.67061796]
[1753579699048,0.35909962,118250.0,118240.0,0.67061796]
[1753579699879,0.34945601,118250.0,118240.0,0.67061796]
[1753579700500,0.35791216,118250.0,118240.0,0.67061796]
[1753579700898,0.34945601,118250.0,118240.0,0.67061796]
[1753579702054,0.35791216,118250.0,118240.0,0.67061796]
[1753579703429,0.35791216,118250.0,118240.0,0.67061803]
[1753579703683,0.35791216,118250.0,118240.0,0.66216073]
[1753579704386,0.341,118250.0,118240.0,0.6706176]
[1753579704610,0.341,118250.0,118240.0,0.7550949]
[1753579704823,0.341,118250.0,118240.0,0.8837749]
[1753579705243,0.341,118250.0,118240.0,0.7992976]
[1753579705672,0.001,118250.0,118240.0,0.7992976]
[1753579709456,0.00945601,118250.0,118240.0,0.48329007]
[1753579709674,0.001,118250.0,118240.0,0.7992976]
[1753579713351,0.00945601,118250.0,118240.0,0.7992976]
[1753579713576,0.001,118250.0,118240.0,0.7992976]
[1753579714108,0.00945601,118250.0,118240.0,0.7992976]
[1753579714802,0.01791224,118250.0,118240.0,0.7992976]
[1753579715229,0.01791224,118250.0,118240.0,0.48329007]
[1753579715498,0.01791224,118250.0,118240.0,0.7992976]
[1753579715724,0.00945601,118250.0,118240.0,0.7992976]
[1753579715965,0.001,118250.0,118240.0,0.7992976]
[1753579720873,0.001,118250.0,118240.0,1.11530513]
[1753579721987,0.03408847,118270.0,118260.0,0.22628614]
[1753579722242,0.0253641,118270.0,118260.0,0.9892812]
[1753579722678,0.0253641,118270.0,118260.0,1.0173612]
[1753579722886,0.02536403,118270.0,118260.0,1.02581671]
[1753579723157,0.02536403,118270.0,118260.0,1.05409195]
[1753579723396,0.02536403,118270.0,118260.0,1.04563644]
[1753579723610,0.0348189,118270.0,118260.0,1.04563644]
[1753579724844,0.0368189,118270.0,118260.0,1.04563644]
[1753579725089,0.0368189,118270.0,118260.0,1.05409195]
[1753579725298,0.3768189,118270.0,118260.0,1.04563644]
[1753579725496,0.36836403,118270.0,118260.0,1.05409195]
[1753579726347,0.01990923,118270.0,118260.0,1.05409195]
[1753579726553,0.003,118270.0,118260.0,1.11874945]
[1753579727004,0.003,118270.0,118260.0,0.48673439]
[1753579727207,0.003,118270.0,118260.0,1.11874945]
[1753579727429,0.002,118270.0,118260.0,1.11874945]
[1753579727845,0.43992741,118280.0,118270.0,0.17755967]
[1753579728066,0.43147304,118280.0,118270.0,0.63094221]
[1753579728265,0.43147304,118280.0,118270.0,0.66747715]
[1753579728507,0.42301874,118280.0,118270.0,0.68257715]
[1753579728737,0.42301867,118280.0,118270.0,0.69103202]
[1753579728955,0.42301867,118280.0,118270.0,0.69301202]
[1753579729174,0.42301867,118280.0,118270.0,0.68455715]
[1753579729396,0.43347297,118280.0,118270.0,0.68455715]
[1753579729603,0.43347289,118280.0,118270.0,0.68455715]
[1753579729815,0.44292733,118280.0,118270.0,0.68455715]
[1753579730235,0.44292733,118280.0,118270.0,0.69301202]
[1753579730660,0.44292733,118280.0,118270.0,0.68455715]
[1753579731315,0.44292733,118280.0,118270.0,0.69301202]
[1753579731545,0.44292726,118280.0,118270.0,0.69301202]
[1753579732214,0.44292726,118280.0,118270.0,0.67610221]
[1753579732456,0.4429279,118280.0,118270.0,0.67610221]
[1753579732668,0.43447339,118280.0,118270.0,0.68455715]
[1753579732852,0.43447339,118280.0,118270.0,0.69301202]
[1753579733067,0.43447339,118280.0,118270.0,0.68455715]
[1753579733323,0.4429279,118280.0,118270.0,0.67610221]
[1753579733568,0.4429279,118280.0,118270.0,0.68455715]
[1753579734310,0.44292783,118280.0,118270.0,0.68455715]
[1753579734564,0.43447375,118280.0,118270.0,0.6676472]
[1753579735947,0.43447375,118280.0,118270.0,0.67610221]
[1753579736879,0.43447375,118280.0,118270.0,0.68455715]
[1753579737599,0.43447375,118280.0,118270.0,0.69301202]
[1753579737805,0.42601931,118280.0,118270.0,0.70951202]
[1753579738017,0.41756466,118280.0,118270.0,0.71796646]
[1753579739539,0.42601896,118280.0,118270.0,0.70951174]
[1753579739757,0.42601896,118280.0,118270.0,0.71796646]
[1753579739958,0.41756466,118280.0,118270.0,0.71796646]
[1753579740189,0.42601888,118280.0,118270.0,0.71796646]
[1753579740409,0.43447325,118280.0,118270.0,0.70105694]
[1753579740625,0.42601888,118280.0,118270.0,0.70951174]
[1753579740841,0.42601888,118280.0,118270.0,0.71796646]
[1753579742295,0.07764959,118280.0,118270.0,0.71796646]
[1753579742531,0.40919537,118280.0,118270.0,0.71796646]
[1753579744110,0.41764967,118280.0,118270.0,0.71796646]
[1753579744340,0.40919537,118280.0,118270.0,0.71796646]
[1753579746126,0.41764967,118280.0,118270.0,0.70951174]
[1753579746341,0.42610411,118280.0,118270.0,0.70105694]
[1753579747256,0.42610411,118280.0,118270.0,0.36813981]
[1753579747488,0.5951944,118280.0,118270.0,0.67610249]
[1753579747723,0.5951944,118280.0,118270.0,0.68455757]
[1753579748425,0.5951944,118280.0,118270.0,0.69301258]
[1753579748913,0.5951944,118280.0,118270.0,0.68455757]
[1753579749554,0.42610411,118280.0,118270.0,0.69301258]
[1753579750239,0.42610411,118280.0,118270.0,0.68455757]
[1753579750648,0.42610411,118280.0,118270.0,0.69301258]
[1753579751341,0.42610411,118280.0,118270.0,0.68455757]
[1753579751560,0.42610411,118280.0,118270.0,0.67610249]
[1753579752137,0.42610411,118280.0,118270.0,0.68455757]
[1753579753056,0.42610411,118280.0,118270.0,0.69301258]
[1753579753274,0.42610411,118280.0,118270.0,0.68455757]
[1753579754098,0.42610411,118280.0,118270.0,0.69301258]
[1753579754506,0.42610411,118280.0,118270.0,0.68455757]
[1753579755166,0.43455862,118280.0,118270.0,0.68455757]
[1753579755634,0.42610411,118280.0,118270.0,0.68455757]
[1753579756374,0.42610411,118280.0,118270.0,0.69301258]
[1753579756585,0.41764967,118280.0,118270.0,0.69301251]
[1753579756804,0.42610404,118280.0,118270.0,0.70961251]
[1753579759192,0.42610404,118280.0,118270.0,0.70115757]
[1753579759457,0.42610404,118280.0,118270.0,0.70961258]
[1753579759618,0.42610404,118280.0,118270.0,0.71806752]
[1753579759863,0.42610404,118280.0,118270.0,0.71806717]
[1753579760257,0.42610404,118280.0,118270.0,0.7096123]
[1753579760455,0.42610404,118280.0,118270.0,0.70115736]
[1753579761228,0.42610404,118280.0,118270.0,0.7096123]
[1753579761487,0.42610404,118280.0,118270.0,0.71806717]
[1753579761876,0.41764967,118280.0,118270.0,0.71806717]
[1753579764164,0.41764967,118280.0,118270.0,0.7096123]
[1753579764391,0.42610411,118280.0,118270.0,0.69270235]
[1753579764610,0.42610411,118280.0,118270.0,0.70115736]
[1753579766708,0.42610411,118280.0,118270.0,0.7096123]
[1753579767286,0.42610411,118280.0,118270.0,0.70115736]
[1753579767977,0.42610404,118280.0,118270.0,0.7096123]
[1753579768150,0.42610404,118280.0,118270.0,0.70115736]
[1753579769635,0.43455855,118280.0,118270.0,0.70115736]
[1753579769857,0.42610404,118280.0,118270.0,0.7096123]
[1753579770507,0.43455855,118280.0,118270.0,0.69270235]
[1753579770747,0.42610404,118280.0,118270.0,0.70115736]
[1753579771343,0.42610404,118280.0,118270.0,0.7096123]
[1753579771557,0.42610404,118280.0,118270.0,0.70115736]
[1753579771792,0.42610404,118280.0,118270.0,0.7096123]
[1753579772244,0.42610404,118280.0,118270.0,0.70115736]
[1753579772876,0.42610404,118280.0,118270.0,0.69270235]
[1753579773081,0.43455855,118280.0,118270.0,0.69270235]
[1753579774064,0.42610404,118280.0,118270.0,0.70115736]
[1753579774373,0.42610404,118280.0,118270.0,0.69270235]
[1753579774588,0.43455855,118280.0,118270.0,0.69270235]
[1753579775016,0.43455855,118280.0,118270.0,0.68424727]
[1753579775216,0.43455855,118280.0,118270.0,0.69270235]
[1753579776207,0.43455855,118280.0,118270.0,0.70115736]
[1753579776367,0.43455855,118280.0,118270.0,0.69270235]
[1753579778336,0.43455855,118280.0,118270.0,0.68424727]
[1753579778547,0.42610461,118280.0,118270.0,0.68424727]
[1753579779184,0.5951949,118280.0,118270.0,0.68424734]
[1753579779388,0.5951949,118280.0,118270.0,0.69270249]
[1753579779564,0.42610461,118280.0,118270.0,0.70115757]
[1753579780431,0.4176501,118280.0,118270.0,0.70961258]
[1753579780879,0.42610461,118280.0,118270.0,0.70961258]
[1753579781309,0.4176501,118280.0,118270.0,0.70961258]
[1753579781738,0.4176501,118280.0,118270.0,0.71806752]
[1753579783666,0.4176501,118280.0,118270.0,0.70961258]
[1753579784919,0.4176501,118280.0,118270.0,0.71806752]
[1753579785120,0.4176501,118280.0,118270.0,0.70961258]
[1753579785331,0.4176501,118280.0,118270.0,0.71806752]
[1753579786998,0.4176501,118280.0,118270.0,0.70961258]
[1753579787427,0.4176501,118280.0,118270.0,0.71806752]
[1753579788908,0.4176501,118280.0,118270.0,0.71806717]
[1753579789134,0.4176501,118280.0,118270.0,0.7096123]
[1753579789366,0.4176501,118280.0,118270.0,0.70115736]
[1753579789560,0.4176501,118280.0,118270.0,0.7096123]
[1753579791527,0.4176501,118280.0,118270.0,0.71806717]
[1753579793110,0.40919573,118280.0,118270.0,0.71806717]
[1753579793312,0.40919573,118280.0,118270.0,0.39360477]
[1753579793545,0.40919573,118280.0,118270.0,0.7096123]
[1753579795762,0.40919537,118280.0,118270.0,0.7096123]
[1753579795948,0.41764959,118280.0,118270.0,0.7096123]
[1753579796210,0.42610396,118280.0,118270.0,0.69270235]
[1753579796426,0.42610396,118280.0,118270.0,0.70115736]
[1753579796613,0.41764959,118280.0,118270.0,0.70115736]
[1753579797132,0.41764959,118280.0,118270.0,0.7096123]
[1753579797851,0.41764967,118280.0,118270.0,0.7096123]
[1753579798087,0.41764967,118280.0,118270.0,0.70115736]
[1753579798325,0.41764959,118280.0,118270.0,0.7096123]
[1753579800088,0.42610396,118280.0,118270.0,0.70115736]
[1753579800292,0.41764959,118280.0,118270.0,0.70961223]
[1753579800496,0.41764959,118280.0,118270.0,0.7096123]
[1753579800735,0.40919537,118280.0,118270.0,0.71806717]
[1753579801241,0.40919537,118280.0,118270.0,0.71806682]
[1753579801490,0.40919537,118280.0,118270.0,0.70961202]
[1753579801726,0.4091953,118280.0,118270.0,0.40205929]
[1753579801953,0.4091953,118280.0,118270.0,0.70961174]
[1753579802909,0.41764952,118280.0,118270.0,0.69270207]
[1753579803322,0.41764945,118280.0,118270.0,0.70115694]
[1753579803554,0.42610375,118280.0,118270.0,0.37669482]
[1753579803770,0.41764945,118280.0,118270.0,0.37669482]
[1753579803996,0.41764945,118280.0,118270.0,0.70115729]
[1753579804218,0.42610375,118280.0,118270.0,0.69270235]
[1753579804766,0.42610375,118280.0,118270.0,0.70115729]
[1753579807965,0.43455819,118280.0,118270.0,0.69270249]
[1753579808234,0.42610375,118280.0,118270.0,0.70115757]
[1753579808462,0.43455819,118280.0,118270.0,0.69270249]
[1753579808721,0.42610375,118280.0,118270.0,0.69270249]
[1753579809014,0.43455812,118280.0,118270.0,0.70115757]
[1753579809229,0.42610418,118280.0,118270.0,0.69270249]
[1753579809708,0.43455869,118280.0,118270.0,0.69270249]
[1753579809954,0.42610418,118280.0,118270.0,0.70115757]
[1753579810191,0.42610418,118280.0,118270.0,0.69270249]
[1753579810406,0.42610418,118280.0,118270.0,0.70115757]
[1753579810624,0.43455862,118280.0,118270.0,0.69270249]
[1753579810830,0.43455862,118280.0,118270.0,0.70115757]
[1753579811101,0.43455862,118280.0,118270.0,0.69270249]
[1753579811671,0.42610454,118280.0,118270.0,0.68424734]
[1753579811881,0.42610454,118280.0,118270.0,0.70115757]
[1753579812104,0.42610454,118280.0,118270.0,0.66764734]
[1753579812298,0.42610454,118280.0,118270.0,0.67610249]
[1753579812543,0.42610454,118280.0,118270.0,0.66764734]
[1753579812745,0.42610454,118280.0,118270.0,0.67610249]
[1753579812933,0.4176501,118280.0,118270.0,0.69301258]
[1753579813144,0.4176501,118280.0,118270.0,0.70811258]
[1753579813907,0.4176501,118280.0,118270.0,0.69965757]
[1753579814130,0.42610461,118280.0,118270.0,0.69120249]
[1753579815014,0.42610461,118280.0,118270.0,0.69965757]
[1753579815454,0.4176501,118280.0,118270.0,0.69965757]
[1753579815663,0.42610454,118280.0,118270.0,0.70811258]
[1753579815879,0.42610454,118280.0,118270.0,0.69965757]
[1753579816609,0.42610454,118280.0,118270.0,0.70811258]
[1753579817278,0.42610454,118280.0,118270.0,0.39210505]
[1753579817535,0.42610454,118280.0,118270.0,0.70811258]
[1753579818892,0.42610454,118280.0,118270.0,0.69965757]
[1753579819496,0.42610454,118280.0,118270.0,0.68274734]
[1753579819497,0.58674068,118280.0,118270.0,0.68274734]
[1753579819916,0.58674068,118280.0,118270.0,0.69120249]
[1753579820107,0.58674068,118280.0,118270.0,0.68274734]
[1753579820553,0.57828638,118280.0,118270.0,0.68274734]
[1753579820929,0.56983201,118280.0,118270.0,0.67429212]
[1753579821124,0.56983201,118280.0,118270.0,0.68274734]
[1753579822224,0.56983201,118280.0,118270.0,0.69120249]
[1753579823044,0.56983201,118280.0,118270.0,0.69965757]
[1753579824938,0.56983201,118280.0,118270.0,0.69120249]
[1753579825211,0.56983201,118280.0,118270.0,0.69965757]
[1753579825595,0.56983201,118280.0,118270.0,0.69120249]
[1753579825825,0.56983201,118280.0,118270.0,0.69965757]
[1753579826055,0.56983201,118280.0,118270.0,0.69120249]
[1753579826499,0.56983201,118280.0,118270.0,0.69965757]
[1753579827512,0.56983201,118280.0,118270.0,0.69120249]
[1753579828236,0.56983201,118280.0,118270.0,0.68274734]
[1753579829408,0.56983201,118280.0,118270.0,0.69120242]
[1753579830019,0.56983201,118280.0,118270.0,0.68274734]
[1753579830224,0.56983201,118280.0,118270.0,0.69120249]
[1753579830429,0.56983201,118280.0,118270.0,0.69965757]
[1753579830665,0.56983201,118280.0,118270.0,0.69120249]
[1753579830830,0.56983201,118280.0,118270.0,0.69965757]
[1753579831250,0.56983201,118280.0,118270.0,0.68274734]
[1753579831805,0.56983201,118280.0,118270.0,0.18918]
[1753579832044,0.57776393,118280.0,118270.0,0.03006]
[1753579832266,0.89377146,118280.0,118270.0,0.02492]
[1753579832494,0.57776393,118280.0,118270.0,0.02492]
[1753579832939,0.57776393,118280.0,118270.0,0.34403753]
[1753579833410,0.57731235,118280.0,118270.0,0.02803]
[1753579833669,0.57731235,118280.0,118270.0,0.34403753]
[1753579834814,0.57731235,118280.0,118270.0,0.34602753]
[1753579835872,0.57731235,118280.0,118270.0,0.37129121]
[1753579836110,0.57731235,118280.0,118270.0,0.05528368]
[1753579836342,0.57731235,118280.0,118270.0,0.37129121]
[1753579836753,0.57731235,118280.0,118270.0,0.34602753]
[1753579836996,0.57731235,118280.0,118270.0,0.36192753]
[1753579838414,0.57731235,118280.0,118270.0,0.04592]
[1753579838645,0.57731235,118280.0,118270.0,0.36192753]
[1753579839348,0.57731235,118280.0,118270.0,0.04592]
[1753579839597,0.57731235,118280.0,118270.0,0.36192753]
[1753579840931,0.57730665,118280.0,118270.0,0.40116113]
[1753579841627,0.57730665,118280.0,118270.0,0.36192753]
[1753579842987,0.56885221,118280.0,118270.0,0.36192753]
[1753579845259,0.56885221,118280.0,118270.0,0.37752753]
[1753579847299,0.56885221,118280.0,118270.0,0.06152]
[1753579847503,0.56885221,118280.0,118270.0,0.37752753]
[1753579847713,0.56885221,118280.0,118270.0,0.54663212]
[1753579848609,0.57730658,118280.0,118270.0,0.54663212]
[1753579848854,0.42512495,118280.0,118270.0,0.55508734]
[1753579849088,0.42512495,118280.0,118270.0,0.54663212]
[1753579850887,0.42512495,118280.0,118270.0,0.55508734]
[1753579851138,0.42512495,118280.0,118270.0,0.54663212]
[1753579851369,0.42512461,118280.0,118270.0,0.54663212]
[1753579852271,0.5942149,118280.0,118270.0,0.54663212]
[1753579860328,0.5942149,118280.0,118270.0,0.54672112]
[1753579861189,0.4166742,118280.0,118270.0,0.54672112]
[1753579861344,0.4166742,118280.0,118270.0,0.55517634]
[1753579861775,0.4166742,118280.0,118270.0,0.54672112]
[1753579862464,0.42512871,118280.0,118270.0,0.55517634]
[1753579863030,0.42512871,118280.0,118270.0,0.23916881]
[1753579863301,0.42512871,118280.0,118270.0,0.54672112]
[1753579863508,0.42512871,118280.0,118270.0,0.55517634]
[1753579864339,0.42512871,118280.0,118270.0,0.54672112]
[1753579864781,0.42512871,118280.0,118270.0,0.55517634]
[1753579865922,0.42512871,118280.0,118270.0,0.54672112]
[1753579866125,0.42512871,118280.0,118270.0,0.67588112]
[1753579866337,0.42512871,118280.0,118270.0,0.23071359]
[1753579866534,0.42512871,118280.0,118270.0,0.67584112]
[1753579866797,0.41719873,118280.0,118270.0,0.67584112]
[1753579866948,0.42513115,118280.0,118270.0,0.68429634]
[1753579868664,0.42513115,118280.0,118270.0,0.67584112]
[1753579869533,0.41667664,118280.0,118270.0,0.67584112]
[1753579869749,0.42513108,118280.0,118270.0,0.68429634]
[1753579870204,0.42513108,118280.0,118270.0,0.67584112]
[1753579870649,0.42513108,118280.0,118270.0,0.68429634]
[1753579870882,0.43358559,118280.0,118270.0,0.68429634]
[1753579871092,0.42565317,118280.0,118270.0,0.68429634]
[1753579871543,0.43358559,118280.0,118270.0,0.68429634]
[1753579871991,0.43358559,118280.0,118270.0,0.69275149]
[1753579872215,0.43358559,118280.0,118270.0,0.68429634]
[1753579874509,0.43358559,118280.0,118270.0,0.67584112]
[1753579875719,0.43358559,118280.0,118270.0,0.68429634]
[1753579876139,0.43358559,118280.0,118270.0,0.67584112]
[1753579876419,0.43358559,118280.0,118270.0,0.68429634]
[1753579877067,0.43358559,118280.0,118270.0,0.67584112]
[1753579877880,0.59422173,118280.0,118270.0,0.35983359]
[1753579878079,0.59422173,118280.0,118270.0,0.66024112]
[1753579880240,0.60286167,118280.0,118270.0,0.66024112]
[1753579880676,0.59492925,118280.0,118270.0,0.66024112]
[1753579880934,0.60286167,118280.0,118270.0,0.34423359]
[1753579881388,0.60286167,118280.0,118270.0,0.66024112]
[1753579887953,0.60286167,118280.0,118270.0,0.67584112]
[1753579888599,0.5944073,118280.0,118270.0,0.67584112]
[1753579889967,0.59440732,118280.0,118270.0,0.67584112]
[1753579890189,0.59440732,118280.0,118270.0,0.35983359]
[1753579890545,0.59440732,118280.0,118270.0,0.67584112]
[1753579892485,0.59440732,118280.0,118270.0,0.68429634]
[1753579892696,0.59440732,118280.0,118270.0,0.67584112]
[1753579893533,0.40840808,118280.0,118270.0,0.70120593]
[1753579893755,0.41738359,118280.0,118270.0,0.69275135]
[1753579893969,0.43429211,118280.0,118270.0,0.69275135]
[1753579894626,0.43429204,118280.0,118270.0,0.70120636]
[1753579894834,0.42583774,118280.0,118270.0,0.7096613]
[1753579895053,0.42583774,118280.0,118270.0,0.70120636]
[1753579895515,0.43429196,118280.0,118270.0,0.7096613]
[1753579895997,0.43429196,118280.0,118270.0,0.70120636]
[1753579896908,0.43429196,118280.0,118270.0,0.7096613]
[1753579897366,0.43429196,118280.0,118270.0,0.70120636]
[1753579898038,0.44274626,118280.0,118270.0,0.70120636]
[1753579898496,0.44274626,118280.0,118270.0,0.69275135]
[1753579898957,0.44274626,118280.0,118270.0,0.70120636]
[1753579899368,0.43429196,118280.0,118270.0,0.70120636]
[1753579899626,0.42583774,118280.0,118270.0,0.7096613]
[1753579900000,0.42583774,118280.0,118270.0,0.71811617]
[1753579900232,0.41738359,118280.0,118270.0,0.39365349]
[1753579900439,0.41738359,118280.0,118270.0,0.70966102]
[1753579900848,0.41738359,118280.0,118270.0,0.39365349]
[1753579901021,0.41738359,118280.0,118270.0,0.70966102]
[1753579901465,0.42583781,118280.0,118270.0,0.70120615]
[1753579902132,0.41738359,118280.0,118270.0,0.70120615]
[1753579902354,0.42583781,118280.0,118270.0,0.70120615]
[1753579903232,0.42583781,118280.0,118270.0,0.69275121]
[1753579903690,0.42583781,118280.0,118270.0,0.6842962]
[1753579903905,0.42583781,118280.0,118270.0,0.69275121]
[1753579904796,0.42583774,118280.0,118270.0,0.7522437]
[1753579905024,0.42583774,118280.0,118270.0,0.76069857]
[1753579905234,0.42583774,118280.0,118270.0,0.69275121]
[1753579905463,0.43429204,118280.0,118270.0,0.69275121]
[1753579905677,0.42583774,118280.0,118270.0,0.70120615]
[1753579906612,0.41738359,118280.0,118270.0,0.70966102]
[1753579907465,0.42583781,118280.0,118270.0,0.70966102]
[1753579907918,0.42583781,118280.0,118270.0,0.70120615]
[1753579908312,0.41738359,118280.0,118270.0,0.70966102]
[1753579908782,0.42583781,118280.0,118270.0,0.70966102]
[1753579909211,0.42583781,118280.0,118270.0,0.70120615]
[1753579909628,0.42583781,118280.0,118270.0,0.70966102]
[1753579909824,0.41738359,118280.0,118270.0,0.70120615]
[1753579910068,0.42583781,118280.0,118270.0,0.70120615]
[1753579910282,0.42583781,118280.0,118270.0,0.70966102]
[1753579910499,0.42583781,118280.0,118270.0,0.70120615]
[1753579911159,0.43429218,118280.0,118270.0,0.69275121]
[1753579911372,0.43429218,118280.0,118270.0,0.6842962]
[1753579911589,0.43429218,118280.0,118270.0,0.67584112]
[1753579912020,0.44274669,118280.0,118270.0,0.69275149]
[1753579912245,0.58647481,118280.0,118270.0,0.67584112]
[1753579912483,0.58647481,118280.0,118270.0,0.66024112]
[1753579915132,0.58647481,118280.0,118270.0,0.34423359]
[1753579915336,0.58647481,118280.0,118270.0,0.66024112]
[1753579919285,0.58647481,118280.0,118270.0,0.34423359]
[1753579919482,0.58647481,118280.0,118270.0,0.67674112]
[1753579919886,0.58647481,118280.0,118270.0,0.36073359]
[1753579920105,0.58647481,118280.0,118270.0,0.67674112]
[1753579921585,0.58647481,118280.0,118270.0,0.67662112]
[1753579923203,0.58647481,118280.0,118270.0,0.36061359]
[1753579923417,0.56956593,118280.0,118270.0,0.154009]
[1753579923636,0.56956593,118280.0,118270.0,0.47001653]
[1753579924292,0.56956593,118280.0,118270.0,0.47320653]
[1753579925166,0.56956593,118280.0,118270.0,0.64443112]
[1753579926421,0.56956593,118280.0,118270.0,0.66033112]
[1753579928063,0.56956593,118280.0,118270.0,0.34432359]
[1753579928248,0.56956593,118280.0,118270.0,0.66033112]
[1753579931690,0.56956593,118280.0,118270.0,0.74480842]
[1753579931886,0.56956593,118280.0,118270.0,0.66033112]
[1753579932579,0.56956593,118280.0,118270.0,0.34432359]
[1753579932959,0.56956593,118280.0,118270.0,0.66033112]
[1753579934948,0.56956593,118280.0,118270.0,0.36002359]
[1753579935235,0.56956593,118280.0,118270.0,0.67603112]
[1753579937341,0.56092599,118280.0,118270.0,0.67603112]
[1753579939691,0.56092599,118280.0,118270.0,0.54703112]
[1753579939897,0.56092599,118280.0,118270.0,0.67643112]
[1753579940145,0.40028957,118280.0,118270.0,0.68538277]
[1753579940363,0.40029007,118280.0,118270.0,0.68538277]
[1753579940575,0.40029007,118280.0,118270.0,0.36937524]
[1753579940786,0.56938036,118280.0,118270.0,0.67643112]
[1753579941210,0.57731037,118280.0,118270.0,0.67643112]
[1753579942525,0.41667438,118280.0,118270.0,0.67643112]
[1753579942754,0.42512889,118280.0,118270.0,0.68488634]
[1753579942999,0.43358297,118280.0,118270.0,0.67643112]
[1753579943435,0.43358297,118280.0,118270.0,0.68488634]
[1753579944030,0.40028957,118280.0,118270.0,0.69334149]
[1753579944200,0.4254881,118280.0,118270.0,0.70179657]
[1753579944399,0.4254881,118280.0,118270.0,0.71870638]
[1753579944982,0.4339424,118280.0,118270.0,0.71025158]
[1753579945169,0.4339424,118280.0,118270.0,0.70179657]
[1753579945408,0.4339424,118280.0,118270.0,0.71870652]
[1753579946031,0.4339424,118280.0,118270.0,0.78896814]
[1753579946436,0.4339424,118280.0,118270.0,0.7805132]
[1753579946647,0.4254881,118280.0,118270.0,0.78896814]
[1753579946845,0.43394232,118280.0,118270.0,0.78051292]
[1753579947296,0.4254881,118280.0,118270.0,0.78896779]
[1753579947479,0.4254881,118280.0,118270.0,0.78896744]
[1753579947625,0.4339424,118280.0,118270.0,0.69334121]
[1753579948666,0.4339424,118280.0,118270.0,0.6848862]
[1753579948863,0.44239684,118280.0,118270.0,0.6848862]
[1753579949137,0.4339424,118280.0,118270.0,0.69334121]
[1753579949350,0.4339424,118280.0,118270.0,0.6848862]
[1753579949765,0.4339424,118280.0,118270.0,0.69334121]
[1753579949963,0.44239684,118280.0,118270.0,0.6848862]
[1753579950234,0.4339424,118280.0,118270.0,0.6848862]
[1753579950579,0.4339424,118280.0,118270.0,0.69334121]
[1753579950818,0.4339424,118280.0,118270.0,0.6848862]
[1753579951040,0.44239677,118280.0,118270.0,0.68488627]
[1753579952095,0.44239677,118280.0,118270.0,0.69334135]
[1753579953331,0.4339429,118280.0,118270.0,0.36887881]
[1753579953537,0.4339429,118280.0,118270.0,0.68488634]
[1753579953955,0.4339429,118280.0,118270.0,0.67643112]
[1753579954164,0.42548889,118280.0,118270.0,0.67643112]
[1753579954955,0.42548889,118280.0,118270.0,0.68488634]
[1753579955198,0.4339434,118280.0,118270.0,0.73765733]